Cogmind - Beta 10.1 @@@ ROGUE MODE // 2020.10.26 @ 02:29:52 Player: Tmvn Result: Self-destructed Performance ------------- Evolutions (4) 2000 Regions Visited (8) 1600 Robots Destroyed (80) 400 Value Destroyed (2702) 2702 Prototype IDs (27) 540 Alien Tech Used (0) 0 Bonus (1074) 1074 TOTAL SCORE: 8316 Bonus ------- High Alert Combat Kills 74 Entered Garrisons 200 Used RIF Installer 500 Aligned with FarCom 300 Cogmind --------- Core Integrity 43/850 Matter 116/300 Energy 100/100 System Corruption 6% Temperature Cool (0) Movement Core (550) Ox10 Location -6/Garrison Parts ------- > --- POWER (2) -------- (None) > --- PROPULSION (4) --- (None) > --- UTILITY (7) ------ High-capacity Storage Unit > --- WEAPON (2) ------- (None) > --- INVENTORY (12) --- Gravmag System Gravmag System Gravmag System Cryofiber Web High-capacity Battery (400) EM Shotgun Shock Rifle Spread Laser Improved Assault Rifle Gauss Rifle Flak Gun Heavy Machine Gun Peak State ------------ > --- POWER ------------ Improved Deuterium Engine Improved Deuterium Engine > --- PROPULSION ------- Armored Wheel Armored Wheel Armored Wheel Armored Wheel > --- UTILITY ---------- Large Storage Unit Large Storage Unit High-capacity Storage Unit Improved Signal Interpreter Transmission Jammer Improved ECM Suite Medium Reactive Plating > --- WEAPON ----------- Gauss Rifle Heavy Machine Gun > --- INVENTORY -------- Enhanced Nuclear Core Micro Nuclear Core Compact Wheel Gravmag System Gravmag System Gravmag System Cryofiber Web Improved Heat Sink Medium Storage Unit High-capacity Battery Advanced Visual Processing Unit EM Shotgun Shock Rifle Arc Projector Beam Rifle Spread Laser Electrolaser Improved Assault Rifle Gauss Rifle Gauss Rifle Flak Gun Improved Grenade Launcher Long-range Missile Launcher [Rating: 47] Favorites ----------- Power Ion Engine Engine Ion Engine Power Core Micro Nuclear Core Propulsion Armored Wheel Treads Light Treads Leg Aluminum Leg Wheel Armored Wheel Utility Large Storage Unit Device Transmission Jammer Storage Large Storage Unit Processor Signal Interpreter Protection Reactive Plating Weapon Enhanced Autogun Energy Gun Beamcaster Ballistic Gun Enhanced Autogun Launcher Long-range Missile Launcher Special Weapon Plasma Cutter Build | -11 -10 -10 -10 -9 -8 -7 -6 -6 ------- Run | Scr Mat Min Exi Min Mat Fac Fac Gar Slots Evolved 8 | . . . . . 4 2 2 . Power 1 | . . . . . . . 1 . Propulsion 2 | . . . . . 1 1 . . Utility 5 | . . . . . 3 1 1 . Weapon . | . . . . . . . . . Parts Attached 90 | . 10 3 . 3 16 40 9 9 Power 11 | . 2 . . 1 1 3 2 2 Engine 7 | . 2 . . 1 1 1 2 . Core 4 | . . . . . . 2 . 2 Reactor . | . . . . . . . . . Propulsion 27 | . 4 2 . 2 2 16 1 . Treads 6 | . . . . 2 1 3 . . Leg 4 | . 2 2 . . . . . . Wheel 17 | . 2 . . . 1 13 1 . Hover . | . . . . . . . . . Flight . | . . . . . . . . . Utility 22 | . 2 . . . 8 8 4 . Device 5 | . . . . . 1 3 1 . Storage 4 | . 2 . . . 1 . 1 . Processor 7 | . . . . . 4 2 1 . Hackware . | . . . . . . . . . Protection 6 | . . . . . 2 3 1 . Artifact . | . . . . . . . . . Weapon 30 | . 2 1 . . 5 13 2 7 Energy Gun 6 | . . 1 . . . 2 . 3 Energy Cannon . | . . . . . . . . . Ballistic Gun 17 | . 2 . . . 5 7 2 1 Ballistic Cannon . | . . . . . . . . . Launcher 6 | . . . . . . 3 . 3 Special Weapon 1 | . . . . . . 1 . . Impact Weapon . | . . . . . . . . . Slashing Weapon . | . . . . . . . . . Piercing Weapon . | . . . . . . . . . Special Melee Weapon . | . . . . . . . . . Unidentified Prototypes 4 | . . . . . 2 1 . 1 Parts Lost 25 | . 1 . . . 1 7 4 12 Power 5 | . . . . . 1 1 . 3 Propulsion 9 | . . . . . . 3 1 5 Utility 3 | . . . . . . 2 1 . Weapon 8 | . 1 . . . . 1 2 4 Highest Loss Streak 11 | . 1 . . . 1 4 4 11 Average Slot Usage (%) 97 | . 100 100 100 100 96 95 96 79 Engine 8 | . 14 14 14 14 8 3 10 6 Core 1 | . . . . . . 3 2 2 Treads 7 | . . . . 24 23 7 . . Leg 6 | . 18 14 14 1 . . . . Wheel 14 | . 9 14 14 1 2 21 25 18 Device 2 | . . . . . . 2 12 11 Storage 24 | . 28 28 28 28 24 23 20 18 Processor 4 | . . . . . 9 7 6 11 Protection 4 | . . . . . 7 9 4 . Energy Gun 3 | . . 10 14 14 2 . 2 2 Ballistic Gun 16 | . 28 17 14 14 15 13 8 . Naked Turns . | . . . . . . . . . Heaviest Build 116 | 10 40 44 44 44 64 77 116 101 Greatest Support 62 | 20 20 16 16 42 62 48 48 48 Greatest Overweight (x) 29 | . 3 2 2 2 16 4 2 29 Average Overweight (x) 1 | . 1 2 2 1 1 1 1 2 Largest Inventory Capacity 24 | . 16 16 16 16 20 20 24 24 Average Capacity 18 | . 15 16 16 16 19 20 22 21 Most Carried 23 | . 16 16 16 16 20 20 23 23 Average Carried 17 | . 13 14 14 16 18 19 20 19 Final Capacity 24 | 6 16 16 16 16 20 20 24 12 Final Carried 23 | 6 16 14 16 16 20 19 23 12 Class Distribution -------------------- 52% | Hauler-Mutant 42% | Mutant 3% | Scavenger-Mutant Dominant Class ---------------- Mutant | -10/Materials Mutant | -10/Mines Mutant | -10/Exiles Mutant | -9/Mines Hauler-Mutant | -8/Materials Hauler-Mutant | -7/Factory Hauler-Mutant | -6/Factory Hauler-Mutant | -6/Garrison Resources | -11 -10 -10 -10 -9 -8 -7 -6 -6 ----------- Run | Scr Mat Min Exi Min Mat Fac Fac Gar Matter Collected 2195 | 195 370 30 . 83 376 1045 . 96 Remotely . | . . . . . . . . . Salvage Created 3494 | . 633 56 . 228 729 1773 . 75 Parts 178 | . 37 2 . 11 25 96 . 7 Haulers Intercepted 2 | . . . . . 2 . . . Recyclers Shooed 6 | . 1 . . 1 . 4 . . Parts Field Recycled . | . . . . . . . . . Retrieved Matter . | . . . . . . . . . Parts Self-Destructed . | . . . . . . . . . Prevented . | . . . . . . . . . Kills | -11 -10 -10 -10 -9 -8 -7 -6 -6 ------- Run | Scr Mat Min Exi Min Mat Fac Fac Gar Combat Hostiles Destroyed 57 | . 16 1 . 3 10 26 . 1 Guns 49 | . 16 1 . 3 10 18 . 1 AOE 8 | . . . . . . 8 . . Classes Destroyed 11 | . 3 . . 2 3 3 . . Worker 9 | . . . . . . 9 . . Builder 3 | . . . . 1 . 2 . . Hauler 2 | . . . . . 2 . . . Recycler 9 | . 1 . . 1 1 6 . . Swarmer 7 | . 3 . . . . 4 . . Grunt 36 | . 13 1 . 2 8 12 . . Brawler 1 | . . . . 1 . . . . Duelist 1 | . . . . . 1 . . . Sentry 5 | . . . . . 1 3 . 1 Hunter 1 | . . . . . . 1 . . Programmer 6 | . . . . . . 6 . . Best Kill Streak 10 | . 3 1 . 3 3 10 . 1 Combat Bots Only 5 | . 3 1 . 3 3 5 . 1 Max Kills in Single Turn 3 | . 1 1 . 1 2 3 . 1 Gunslinging . | . . . . . . . . . Exploded 3 | . . . . . . 3 . . Melee . | . . . . . . . . . Uniques/NPCs Destroyed . | . . . . . . . . . Combat | -11 -10 -10 -10 -9 -8 -7 -6 -6 -------- Run | Scr Mat Min Exi Min Mat Fac Fac Gar Damage Taken 5815 | . 669 143 . 56 608 2169 294 1876 Core 1334 | . 88 67 . . 152 220 . 807 Absorbed by Shields . | . . . . . . . . . Core Remaining (%) 69 | 100 . . . 38 72 68 . . Volleys Fired 250 | . 68 5 . 11 42 103 . 21 Largest 2 | . 2 2 . 2 2 2 . 1 Hottest 98 | . 40 40 . 95 98 73 . 63 Shots Fired 475 | . 135 10 . 22 84 203 . 21 Gun 464 | . 135 10 . 22 84 192 . 21 Cannon . | . . . . . . . . . Launcher 9 | . . . . . . 9 . . Special 2 | . . . . . . 2 . . Kinetic 417 | . 135 10 . 11 72 188 . 1 Thermal 28 | . . . . 11 12 2 . 3 Explosive 9 | . . . . . . 9 . . Electromagnetic 21 | . . . . . . 4 . 17 Robot Hit Streak 23 | . 9 5 . 12 13 23 . 8 Robot Miss Streak 4 | . 3 2 . 1 2 4 . 1 Penetration Max . | . . . . . . . . . Secondary Targets 3 | . 1 1 . 1 . . . . Max Gunslinging Chain 1 | . 1 1 . 1 . . . . Shots Hit Robots 303 | . 86 6 . 17 62 120 . 12 Core Hits 160 | . 33 3 . 6 26 86 . 6 Critical Hits 1 | . 1 . . . . . . . Critical Kills . | . . . . . . . . . Critical Parts Destroyed 1 | . 1 . . . . . . . Melee Attacks . | . . . . . . . . . Impact . | . . . . . . . . . Slashing . | . . . . . . . . . Piercing . | . . . . . . . . . Sneak Attacks . | . . . . . . . . . Combat Hostiles . | . . . . . . . . . Follow-up Attacks . | . . . . . . . . . Damage Inflicted 5688 | . 846 53 . 282 1031 3310 . 166 Guns 4594 | . 846 53 . 282 1031 2218 . 164 Cannons . | . . . . . . . . . Explosions 1092 | . . . . . . 1092 . . Melee . | . . . . . . . . . Ramming 2 | . . . . . . . . 2 Kinetic 3977 | . 846 53 . 83 843 2152 . . Thermal 436 | . . . . 199 188 . . 49 Explosive 1092 | . . . . . . 1092 . . Electromagnetic 181 | . . . . . . 66 . 115 Impact . | . . . . . . . . . Slashing . | . . . . . . . . . Piercing . | . . . . . . . . . Highest Corruption 10 | . . . . . . 10 6 6 Average Corruption 6 | . . . . . . 6 4 6 Corruption Purged . | . . . . . . . . . Effects 81 | . . . . . . 65 6 10 Message Errors 21 | . . . . . . 16 1 4 Matter Fused 18 | . . . . . . 14 2 2 Heat Flow Errors 5 | . . . . . . 5 . . Energy Discharges 4 | . . . . . . 4 . . Parts Rejected 2 | . . . . . . 1 . 1 Data Loss (minor) 10 | . . . . . . 7 3 . Data Loss (major) 3 | . . . . . . 2 . 1 Misfires 5 | . . . . . . 5 . . Targeting Errors 13 | . . . . . . 11 . 2 Overload Shots . | . . . . . . . . . Overflow Damage 53 | . . . . . . 20 . 33 Projectiles . | . . . . . . . . . Explosions 53 | . . . . . . 20 . 33 Melee . | . . . . . . . . . Knockbacks . | . . . . . . . . . Impact . | . . . . . . . . . Kinetic . | . . . . . . . . . Secondary . | . . . . . . . . . Self-Inflicted Damage 155 | . . . . . . . . 155 Shots 1 | . . . . . . . . 1 Rammed 1 | . . . . . . . . 1 Targets Rammed 1 | . . . . . . . . 1 Kicked . | . . . . . . . . . Crushed . | . . . . . . . . . Highest Temperature 333 | . 12 12 . 288 153 200 . 333 Average Temperature 53 | . 7 8 . 114 53 46 . 73 Received Heat Transfer 1770 | . 324 33 . 24 306 723 . 360 Effects 1 | . . . . 1 . . . . Energy Bleed 1 | . . . . 1 . . . . Siege Activations . | . . . . . . . . . Robots Corrupted . | . . . . . . . . . Combat Hostiles . | . . . . . . . . . Parts Fried . | . . . . . . . . . Impact Corruptions . | . . . . . . . . . Robots Melted . | . . . . . . . . . Combat Hostiles . | . . . . . . . . . Parts Melted 2 | . . . . 1 1 . . . Heat Transferred 777 | . . . . 333 333 . . 111 Parts Sabotaged . | . . . . . . . . . Parts Stolen . | . . . . . . . . . Parts Stripped . | . . . . . . . . . Power Chain Reactions . | . . . . . . . . . Missiles Intercepted . | . . . . . . . . . Alert | -11 -10 -10 -10 -9 -8 -7 -6 -6 ------- Run | Scr Mat Min Exi Min Mat Fac Fac Gar Peak Influence 538 | . 180 36 . 80 161 538 232 217 Initial 232 | . . 6 . . 31 13 232 134 Average 137 | . 84 32 . 56 61 216 205 173 Maximum Alert Level 2 | . . . . . . 2 1 1 Low Security (%) 76 | . 100 100 . 100 100 48 65 59 Level 1 18 | . . . . . . 38 34 40 Level 2 5 | . . . . . . 13 . . Level 3 . | . . . . . . . . . Level 4 . | . . . . . . . . . Level 5 . | . . . . . . . . . High Security . | . . . . . . . . . Max Security . | . . . . . . . . . Squads Dispatched 17 | . 6 . . . . 11 . . Investigation 6 | . 2 . . . . 4 . . Extermination 3 | . . . . . . 3 . . Reinforcement 8 | . 4 . . . . 4 . . Assault . | . . . . . . . . . Garrison . | . . . . . . . . . Intercept . | . . . . . . . . . Construction Impeded . | . . . . . . . . . Haulers Reinforced . | . . . . . . . . . Stealth | -11 -10 -10 -10 -9 -8 -7 -6 -6 --------- Run | Scr Mat Min Exi Min Mat Fac Fac Gar Distress Signals 3 | . 1 . . . 1 1 . . Communications Jammed 3 | . . . . . . . . 3 Distress Signals . | . . . . . . . . . Times Spotted 112 | . 35 2 . 3 14 47 . 11 Peak Tracking Total 7 | . 4 2 . 3 4 6 . 7 Tactical Retreats 7 | . 2 . . . . 3 . 2 Traps | -11 -10 -10 -10 -9 -8 -7 -6 -6 ------- Run | Scr Mat Min Exi Min Mat Fac Fac Gar Traps Triggered 11 | . 2 1 . . . 4 3 1 Indirectly . | . . . . . . . . . Trap Hack Attempts . | . . . . . . . . . Triggered . | . . . . . . . . . Disarmed . | . . . . . . . . . Reprogrammed . | . . . . . . . . . Reused . | . . . . . . . . . Traps Extracted . | . . . . . . . . . Installed . | . . . . . . . . . Triggered . | . . . . . . . . . Exploded 1 | . . . 1 . . . . . Machines | -11 -10 -10 -10 -9 -8 -7 -6 -6 ---------- Run | Scr Mat Min Exi Min Mat Fac Fac Gar Machines Disabled 3 | . . . . . . 1 . 2 Max in Single Turn 2 | . . . . . . 1 . 2 Phase Generator 1 | . . . . . . . . 1 Machines Sabotaged . | . . . . . . . . . Garrisons Compromised . | . . . . . . . . . Overloaded Fab Kills . | . . . . . . . . . Fab Network Shutdowns . | . . . . . . . . . Hacking | -11 -10 -10 -10 -9 -8 -7 -6 -6 --------- Run | Scr Mat Min Exi Min Mat Fac Fac Gar Machines Accessed 18 | . 3 1 1 . 4 7 2 . Terminals 10 | . 3 . . . 4 2 1 . Fabricators 1 | . . . . . . 1 . . Repair Stations 2 | . . . . . . 2 . . Recycling Units . | . . . . . . . . . Scanalyzers 2 | . . . . . . 2 . . Garrison Access 1 | . . . . . . . 1 . Total Hacks 51 | . 9 1 1 . 13 22 5 . Successful 29 | . 7 1 1 . 6 13 1 . Failed 21 | . 1 . . . 7 9 4 . Catastrophic 4 | . . . . . 2 2 . . Database Lockouts 1 | . 1 . . . . . . . Manual 39 | . 14 1 1 . 12 8 3 . Terminals 31 | . 9 . . . 13 6 3 . Fabricators 5 | . . . . . . 5 . . Repair Stations 5 | . . . . . . 5 . . Recycling Units . | . . . . . . . . . Scanalyzers 6 | . . . . . . 6 . . Garrison Access 2 | . . . . . . . 2 . Terminal Hacks 9 | . 3 1 1 . 3 1 . . Part Schematic 1 | . . . . . 1 . . . Robot Analysis 2 | . 2 . . . . . . . Open Door 1 | . . 1 . . . . . . Unreport Threat 1 | . . . . . 1 . . . Locate Traps 1 | . 1 . . . . . . . Recall Investigation 1 | . . . . . . 1 . . Zone Layout 1 | . . . . . 1 . . . EX-Prototype ID Bank 1 | . . . 1 . . . . . Fabricator Hacks 3 | . . . . . . 3 . . Load Schematic 1 | . . . . . . 1 . . Build 2 | . . . . . . 2 . . Repair Station Hacks 3 | . . . . . . 3 . . Scan Component 2 | . . . . . . 2 . . Repair 1 | . . . . . . 1 . . Recycling Unit Hacks . | . . . . . . . . . Scanalyzer 5 | . . . . . . 5 . . Insert Component 3 | . . . . . . 3 . . Analyze 2 | . . . . . . 2 . . Garrison Access Hacks 1 | . . . . . . . 1 . Unlock Access 1 | . . . . . . . 1 . Unauthorized Hacks 8 | . 4 . . . 3 1 . . Terminals 7 | . 4 . . . 3 . . . Botnet 6 | . 3 . . . 3 . . . Operators 1 | . 1 . . . . . . . Fabricators 1 | . . . . . . 1 . . Prioritize 1 | . . . . . . 1 . . Repair Stations . | . . . . . . . . . Recycling Units . | . . . . . . . . . Scanalyzers . | . . . . . . . . . Garrison Access . | . . . . . . . . . Data Cores Recovered . | . . . . . . . . . Used . | . . . . . . . . . Hacking Detections 14 | . 2 . . . 4 6 2 . Full Trace Events 2 | . . . . . . 2 . . Feedback Events . | . . . . . . . . . Feedback Blocked . | . . . . . . . . . Robot Schematics Acquired . | . . . . . . . . . Robots Built . | . . . . . . . . . Matter . | . . . . . . . . . Time . | . . . . . . . . . Total Robot Build Rating . | . . . . . . . . . Part Schematics Acquired 3 | . . . . . 1 2 . . Parts Built 4 | . . . . . . 4 . . Matter 248 | . . . . . . 248 . . Time 62 | . . . . . . 62 . . Total Part Build Rating 8 | . . . . . . 8 . . Parts Repaired 1 | . . . . . . 1 . . Time 53 | . . . . . . 53 . . Parts Recycled . | . . . . . . . . . Recycled Matter . | . . . . . . . . . Retrieved Matter . | . . . . . . . . . Retrieved Components . | . . . . . . . . . Parts Scanalyzed 3 | . . . . . . 3 . . Part Schematics Acquired 2 | . . . . . . 2 . . Parts Damaged . | . . . . . . . . . Bothacking | -11 -10 -10 -10 -9 -8 -7 -6 -6 ------------ Run | Scr Mat Min Exi Min Mat Fac Fac Gar Used RIF Installer 1 | . . . . . . . . 1 Robots Hacked . | . . . . . . . . . Non-combat . | . . . . . . . . . Combat . | . . . . . . . . . Robot Hacks Applied . | . . . . . . . . . Relay Couplers Released . | . . . . . . . . . Robots Rewired . | . . . . . . . . . Allies Hacked . | . . . . . . . . . Hacks Repelled . | . . . . . . . . . Allies | -11 -10 -10 -10 -9 -8 -7 -6 -6 -------- Run | Scr Mat Min Exi Min Mat Fac Fac Gar Total Allies . | . . . . . . . . . Largest Group . | . . . . . . . . . Highest-Rated Group . | . . . . . . . . . Highest-Rated Ally . | . . . . . . . . . Total Orders . | . . . . . . . . . Ally Attacks . | . . . . . . . . . Total Damage . | . . . . . . . . . Kills . | . . . . . . . . . Allies Corrupted . | . . . . . . . . . Allies Melted . | . . . . . . . . . Intel | -11 -10 -10 -10 -9 -8 -7 -6 -6 ------- Run | Scr Mat Min Exi Min Mat Fac Fac Gar Robot Analysis Total 2 | . 2 . . . . . . . Derelict Logs Recovered . | . . . . . . . . . Drone Launches . | . . . . . . . . . Drone Recoveries . | . . . . . . . . . Exploration | -11 -10 -10 -10 -9 -8 -7 -6 -6 ------------- Run | Scr Mat Min Exi Min Mat Fac Fac Gar Turns Passed 5787 | . 1285 306 405 365 820 2067 329 210 Spaces Moved 3549 | 1 680 173 228 198 433 1445 299 92 Core 11 | . . . . . 4 . . 7 Treads 507 | . . . . 170 284 53 . . Legs 771 | 1 428 125 217 . . . . . Wheels 2260 | . 252 48 11 28 145 1392 299 85 Hover . | . . . . . . . . . Flight . | . . . . . . . . . Fastest Speed 96 | 120 120 120 120 120 120 96 100 100 Average Speed 132 | 120 155 163 177 164 153 105 103 151 Slowest Speed 1500 | 120 210 180 180 172 850 205 110 1500 Overloaded Moves . | . . . . . . . . . Propulsion Burnouts . | . . . . . . . . . Robots Hopped . | . . . . . . . . . Cave-ins Triggered . | . . . . . . . . . Exploration Rate (%) 37 | 2 95 37 60 47 36 32 6 26 Regions Visited 8 Branch Regions 3 Pre-discovered Areas . | . . . . . . . . . Known Exits Taken 3 | . . . . . 1 1 1 . Unknown Exits Taken 5 | 1 1 1 1 1 . . . . Scrap Searched . | . . . . . . . . . Spaces Dug 3 | . . . . . . 3 . . Terrain Destroyed 102 | . . . . . . 27 . 75 Melee . | . . . . . . . . . Projectile . | . . . . . . . . . AOE 102 | . . . . . . 27 . 75 Terrain Rammed . | . . . . . . . . . Walls Destroyed . | . . . . . . . . . Machines Disabled . | . . . . . . . . . Actions | -11 -10 -10 -10 -9 -8 -7 -6 -6 --------- Run | Scr Mat Min Exi Min Mat Fac Fac Gar Total 4261 | . 789 191 229 218 534 1847 318 135 Wait 246 | . 9 . . 2 16 207 . 12 Move 3541 | . 679 172 227 197 432 1444 298 92 Hop . | . . . . . . . . . Pick Up 58 | . 13 3 2 2 12 18 8 . Fast Attach 27 | . 2 1 . . 9 13 2 . Attach 22 | . 1 . . . 4 7 6 4 Detach 11 | . . . . . 6 3 2 . Swap 41 | . 7 2 . 3 3 20 1 5 Drop 64 | . 10 8 . 3 10 32 1 . Fire 250 | . 68 5 . 11 42 103 . 21 Melee . | . . . . . . . . . Ram 1 | . . . . . . . . 1 Kick . | . . . . . . . . . Crush . | . . . . . . . . . Escape Stasis . | . . . . . . . . . Rewire . | . . . . . . . . . Trap . | . . . . . . . . . Miscellaneous . | . . . . . . . . . Route ------- -11/Scrapyard -10/Materials (discovered 4 exits: [*Mat x3] / *Min) -10/Mines -10/Exiles -9/Mines (discovered 2 exits: *Mat x2) -8/Materials -7/Factory -6/Factory -6/Garrison History --------- Turn | Location | Event 1 | -11/Scrapyard | Discovered new exit (range 0) 1 | -11/Scrapyard | Entered Materials 303 | -10/Materials | Build established: Mutant 309 | -10/Materials | Discovered new exit (range 16) 351 | -10/Materials | Central database locked down 624 | -10/Materials | Discovered new exit (range 13) 990 | -10/Materials | Discovered new exit (range 16) 1196 | -10/Materials | Discovered new exit (range 16) 1286 | -10/Materials | Entered Mines 1302 | -10/Mines | Met a Derelict bent on vengeance 1331 | -10/Mines | Core integrity fell below 50% 1349 | -10/Mines | Met a Derelict who couldn't figure out how to use a Trap Extractor 1585 | -10/Mines | Deemed a non-threat by the Exiles lab entrance 1585 | -10/Mines | Discovered new exit (range 5) 1592 | -10/Mines | Entered Exiles 1636 | -10/Exiles | Met 8R-AWN 1668 | -10/Exiles | Met EX-HEX 1718 | -10/Exiles | Met EX-BIN 1738 | -10/Exiles | Aligned with FarCom system 1740 | -10/Exiles | Given EX-Vault access code 1781 | -10/Exiles | Opened EX-Vault 1794 | -10/Exiles | Found Modified TNC 1833 | -10/Exiles | Warned to stay clear of 0b10 Research branches 1855 | -10/Exiles | Exiles lab attacked by MAIN.C 1983 | -10/Exiles | Discovered new exit (range 14) 1997 | -10/Exiles | Left Exiles lab with Modified TNC 1997 | -10/Exiles | Entered Mines 2283 | -9/Mines | Discovered new exit (range 14) 2331 | -9/Mines | Discovered new exit (range 9) 2362 | -9/Mines | Entered Materials 2362 | -8/Materials | Evolved 4 slots: Propulsion x1, Utility x3 2849 | -8/Materials | Build established: Hauler-Mutant 2920 | -8/Materials | Discovered new exit (range 3) 2994 | -8/Materials | Identified exit to Factory 3182 | -8/Materials | Entered Factory 3182 | -7/Factory | Evolved 2 slots: Propulsion x1, Utility x1 3770 | -7/Factory | Repaired Broken Adv. Treads 4297 | -7/Factory | Lost 4 parts (2n1u1w) 4901 | -7/Factory | Fabricated Arm. Wheel (x2) 4943 | -7/Factory | Fabricated Arm. Wheel (x2) 5056 | -7/Factory | Discovered new exit (range 15) 5077 | -7/Factory | Identified exit to Factory 5237 | -7/Factory | System corruption reached 10% 5249 | -7/Factory | Entered another Factory area 5249 | -6/Factory | Evolved 2 slots: Power x1, Utility x1 5395 | -6/Factory | Lost 4 parts (1n1u2w) 5577 | -6/Factory | Identified exit to Garrison 5578 | -6/Factory | Entered Garrison 5583 | -6/Garrison | Installed Relay Interface Framework 5625 | -6/Garrison | Phase Generator disabled 5750 | -6/Garrison | Released all parts (8) 5756 | -6/Garrison | Triggered checkpoint 5775 | -6/Garrison | Core integrity fell below 50% 5781 | -6/Garrison | Lost 11 parts (2p5n4w) 5785 | -6/Garrison | Core integrity fell below 20% 5788 | -6/Garrison | Self-destructed Last Messages --------------- 05743_ Slug penetrates Wall. 05749_ Imp. Deuterium Engine destroyed. 05749_ Slug penetrates Wall. 05749_ Arm. Wheel destroyed. 05750_ Released Faulty Enh. Nuclear Core. 05750_ Released Adv. Visual Processing Unit. 05750_ Released Imp. ECM Suite. 05750_ Released Transmission Jammer. 05750_ Released Imp. Signal Interpreter. 05750_ Released Lrg. Storage Unit. 05750_ Com. Wheel crushed and broken. 05750_ Gauss Rifle crushed and broken. 05750_ Released Hcp. Storage Unit. 05754_ Penetrated by Slug. 05755_ Acquired 75 matter. 05756_ Beams of light sweep through the air. An alarm sounds. 05768_ JV=SR>0CH6 H7DDV 3VK7 05772_ Slammed into S-27 Virus. 05776_ S-27 Virus destroyed. 05783_ Acquired 21 matter. Map ----- +----------------------------------------------------+ | ?????????????????????????????????????????????????? | | ?????????????????????????????????????????????????? | | ?????????????????????????????????????????????????? | | ?????????????????????????????????????????????????? | | ?????????????????????????????????????????????????? | | ?????????????????????????????????????????????????? | | ?????????????????????????????????????????????????? | | ?????????????????????????????????????????????????? | | ?????????????????????????????????????????????????? | | ?????????????????????????????????????????????????? | | ?????????????????????????????????????????????????? | | ?????????????????????????????????????????????????? | | ?????????????????????????#???????????????????????? | | ????????????????????????? ???????????????????????? | | ?????????????????????????Y#??????????????????????? | | ????????????????????????? ??????????????????????? | | ????????????????????????? ??????????????????????? | | ????????????????????????# ??????????????????????? | | ????????????????????????# #??????????????????????? | | ????????????????????????# #??????????????????????? | | ????????????????????????# #??????????????????????? | | ????????????????????????# #??????????????????????? | | ????????????????????????# #??????????????????????? | | ??????#####???????????### #??????????????????????? | | ??????#"""#???????##### #??????????????????????? | | ??????#" "#???????# s@#??????????????????????? | | ??????#" "#???????# ### s[#??????????????????????? | | ??????#" "#???????# #?###!#??????????????????????? | | ??????## ##???????# #???#*#??????????????????????? | | ??????# #???????#!#####s########???????????????? | | ??????# #########!!*Y![ [!! #???????????????? | | ??????# ]!######=#### #???????????????? | | ??????# #?????##????????????????????? | | ??????######## #### #???????????????????????????? | | ??????###????# #??# #??????????h????????????????? | | ???#### ##### #### #######?????????????????????? | | ??## + #?????????????????????? | | ?## ##### ##### #?????????????????????? | | ?# #??# #???# #?????????????????????? | | ## #??# #???# #????????ssss?????????? | | # # #??# #???# #?????###""""## #???? | | ?# #### ##### #### #???? | | # ? | | ## ##### ? | | ?# #??############# ## ## #???? | | ?# #??????????????? #?????#????????? | | ?# #???????????????? ?????????????? | | ?## # ##????????????????? ???????????? | | ??## ##??????????????????? ?????????? | | ???##### ####???????????????????? ???????? | +----------------------------------------------------+ Best States ------------- Heat Dissipation 48 Energy Generation 27 Energy Capacity 480 Matter Stores 300 Matter Capacity 300 Sight Range 20 Terrain Scan Density 85 ECM Strength 2 Jamming Range 8 Armor Coverage 375 Resistance: KI 30 Evasion (%) 40 Recoil Reduction 3 Item Schematics ----------------- Hacking Suite | -8/Materials | Hacked Arm. Wheel | -7/Factory | Scanalyzed Imp. Grenade Launcher | -7/Factory | Scanalyzed Robot Schematics ------------------ None Fabricated ------------ Arm. Wheel | x2 | -7/Factory Arm. Wheel | x2 | -7/Factory Alien Tech Used ----------------- None Achievements -------------- None Challenges ------------ None Game ------ Seed InertialGrenadeAutocannon Manual? 0 Play Time 01:08:21 Cumulative 73.8 hours Start 2020.10.26 @ 00:51:41 End 2020.10.26 @ 02:29:52 Sessions 3 Manual Loads 0 Difficulty Rogue Special Mode None Game No. 115 Rogue 115 Adventurer 0 Explorer 0 Win Type - Total 1 Types 1/0/0/0/0/0/0/0/0 Lore% 30 Gallery% 49 Achievement% 36 Wizard Run 0 Options --------- ASCII 1 Keyboard 1 Movement Vi Keybinds 0 Fullscreen 2 Font 12/Fuzzy Map View 76x56 Tactical HUD 1 Map Filters SATURATION(70) Filters SATURATION(65)|SHIFT_HUE(15) Steam 1 RUN: c0381305-9165-41f3-aa51-5dcd670bd854